[Event "Early-Titled-Tuesday-Blitz-April-02-2024"]
[Site "Chess.com"]
[Date "2024.04.02"]
[Round "1"]
[White "AlexanderKing"]
[Black "DefenceWinsChampionships"]
[Result "1-0"]
[WhiteElo "2639"]
[BlackElo "2324"]
[TimeControl "180+1"]
[EndTime "8:07:11 PDT"]
[Termination "AlexanderKing won on time"]

1. c4 {[%clk 0:03:00.9]} 1... e5 {[%clk 0:02:55.5]} 2. g3 {[%clk 0:03:01]} 2...
d6 {[%clk 0:02:54.4]} 3. Bg2 {[%clk 0:03:01]} 3... c6 {[%clk 0:02:54.8]} 4. Nc3
{[%clk 0:03:01]} 4... Be6 {[%clk 0:02:54.8]} 5. b3 {[%clk 0:02:49.9]} 5... g6
{[%clk 0:02:53.3]} 6. d4 {[%clk 0:02:45.7]} 6... Bg7 {[%clk 0:02:17.4]} 7. dxe5
{[%clk 0:02:42.8]} 7... dxe5 {[%clk 0:02:17.4]} 8. Qxd8+ {[%clk 0:02:43.1]} 8...
Kxd8 {[%clk 0:02:17.5]} 9. Ne4 {[%clk 0:02:41.3]} 9... Kc7 {[%clk 0:02:00.5]}
10. Ng5 {[%clk 0:02:38]} 10... Na6 {[%clk 0:01:36]} 11. Nxe6+ {[%clk 0:02:33.8]}
11... fxe6 {[%clk 0:01:36.9]} 12. Bb2 {[%clk 0:02:27.4]} 12... Nb4 {[%clk
0:01:33.3]} 13. Be4 {[%clk 0:02:17.5]} 13... Nh6 {[%clk 0:00:52]} 14. Nf3 {[%clk
0:02:12.9]} 14... Nf7 {[%clk 0:00:51.6]} 15. a3 {[%clk 0:01:52.4]} 15... Na6
{[%clk 0:00:50.6]} 16. b4 {[%clk 0:01:53.1]} 16... Rad8 {[%clk 0:00:47.2]} 17.
e3 {[%clk 0:01:47.8]} 17... Nd6 {[%clk 0:00:31.1]} 18. Nd2 {[%clk 0:01:47.7]}
18... Rd7 {[%clk 0:00:10.5]} 19. Ke2 {[%clk 0:01:41.5]} 19... Rhd8 {[%clk
0:00:08.7]} 20. Rhd1 {[%clk 0:01:41.8]} 20... b6 {[%clk 0:00:04.1]} 21. h4
{[%clk 0:01:34.5]} 21... Nxe4 {[%clk 0:00:03.4]} 22. Nxe4 {[%clk 0:01:34.5]}
22... h6 {[%clk 0:00:03.6]} 23. Rxd7+ {[%clk 0:01:33.2]} 23... Rxd7 {[%clk
0:00:04]} 24. h5 {[%clk 0:01:31.8]} 24... g5 {[%clk 0:00:03.5]} 25. f3 {[%clk
0:01:23.9]} 25... Nb8 {[%clk 0:00:02.6]} 26. Nf2 {[%clk 0:01:24.1]} 26... Rd8
{[%clk 0:00:01.1]} 27. Ng4 {[%clk 0:01:19.8]} 27... Nd7 {[%clk 0:00:01.7]} 28.
Rd1 {[%clk 0:01:16.9]} 28... Re8 {[%clk 0:00:02]} 29. Ba1 {[%clk 0:01:07.3]}
29... a6 {[%clk 0:00:02.6]} 30. Kd3 {[%clk 0:01:07.6]} 30... b5 {[%clk
0:00:02.9]} 31. c5 {[%clk 0:01:02.3]} 31... a5 {[%clk 0:00:03.2]} 32. Ke4 {[%clk
0:01:02.2]} 32... axb4 {[%clk 0:00:02.5]} 33. axb4 {[%clk 0:01:03.1]} 33... Ra8
{[%clk 0:00:01.7]} 34. Bc3 {[%clk 0:00:20.6]} 34... Ra4 {[%clk 0:00:02.1]} 35.
Kd3 {[%clk 0:00:14.1]} 1-0

[Event "Early-Titled-Tuesday-Blitz-April-02-2024"]
[Site "Chess.com"]
[Date "2024.04.02"]
[Round "1"]
[White "tactic"]
[Black "AlainBruxelles"]
[Result "1-0"]
[WhiteElo "2617"]
[BlackElo "2289"]
[TimeControl "180+1"]
[EndTime "8:07:11 PDT"]
[Termination "tactic won by checkmate"]

1. e4 {[%clk 0:03:00.9]} 1... c6 {[%clk 0:02:59.6]} 2. d4 {[%clk 0:03:00.7]}
2... d5 {[%clk 0:02:59.9]} 3. e5 {[%clk 0:03:01.4]} 3... c5 {[%clk 0:02:58]} 4.
Nf3 {[%clk 0:03:01.2]} 4... e6 {[%clk 0:02:54.3]} 5. c3 {[%clk 0:02:59.4]} 5...
Nc6 {[%clk 0:02:52.7]} 6. Bd3 {[%clk 0:03:00.1]} 6... f6 {[%clk 0:02:50.7]} 7.
Bf4 {[%clk 0:02:46.9]} 7... fxe5 {[%clk 0:02:46]} 8. Nxe5 {[%clk 0:02:43.4]}
8... Nf6 {[%clk 0:02:39.2]} 9. O-O {[%clk 0:02:39]} 9... Bd6 {[%clk 0:02:38]}
10. Bg3 {[%clk 0:02:26.1]} 10... O-O {[%clk 0:02:33.9]} 11. Bc2 {[%clk
0:01:50.1]} 11... cxd4 {[%clk 0:02:29.2]} 12. cxd4 {[%clk 0:01:51]} 12... Qb6
{[%clk 0:02:28.9]} 13. Nc3 {[%clk 0:01:38.7]} 13... Qxd4 {[%clk 0:02:10.6]} 14.
Nxc6 {[%clk 0:01:34.4]} 14... Qxd1 {[%clk 0:02:10.5]} 15. Raxd1 {[%clk
0:01:35.2]} 15... Bxg3 {[%clk 0:02:09.8]} 16. Ne7+ {[%clk 0:01:36]} 16... Kf7
{[%clk 0:02:02.7]} 17. Nxc8 {[%clk 0:01:36.4]} 17... Bc7 {[%clk 0:01:56.6]} 18.
Nxa7 {[%clk 0:01:32.6]} 18... Rxa7 {[%clk 0:01:49.3]} 19. Nb5 {[%clk 0:01:33.1]}
19... Rxa2 {[%clk 0:01:38.2]} 20. Nxc7 {[%clk 0:01:16.5]} 20... Rc8 {[%clk
0:01:37.4]} 21. Bb1 {[%clk 0:01:17]} 21... Rxb2 {[%clk 0:01:35.6]} 22. Rc1
{[%clk 0:01:17.6]} 22... Ne4 {[%clk 0:01:29.4]} 23. Bxe4 {[%clk 0:01:03.1]}
23... dxe4 {[%clk 0:01:29.3]} 24. Rfd1 {[%clk 0:01:02.8]} 24... Rb6 {[%clk
0:01:01.4]} 25. h4 {[%clk 0:00:54]} 25... Rc6 {[%clk 0:00:58.1]} 26. Rxc6 {[%clk
0:00:41.8]} 26... bxc6 {[%clk 0:00:58.4]} 27. Na6 {[%clk 0:00:41.3]} 27... c5
{[%clk 0:00:57]} 28. Kf1 {[%clk 0:00:39.4]} 28... Rc6 {[%clk 0:00:53]} 29. Nb8
{[%clk 0:00:25.3]} 29... Rc8 {[%clk 0:00:52.6]} 30. Nd7 {[%clk 0:00:25.4]} 30...
c4 {[%clk 0:00:48.1]} 31. Ne5+ {[%clk 0:00:25.8]} 31... Kf6 {[%clk 0:00:47.9]}
32. Ng4+ {[%clk 0:00:26.3]} 32... Kg6 {[%clk 0:00:42.4]} 33. Ne3 {[%clk
0:00:19.5]} 33... c3 {[%clk 0:00:42.4]} 34. Rc1 {[%clk 0:00:19.6]} 34... Kh5
{[%clk 0:00:40.4]} 35. g3 {[%clk 0:00:19.7]} 35... g5 {[%clk 0:00:40.6]} 36.
hxg5 {[%clk 0:00:20.4]} 36... Kxg5 {[%clk 0:00:41]} 37. Ke2 {[%clk 0:00:21.2]}
37... h5 {[%clk 0:00:38.4]} 38. Nd1 {[%clk 0:00:21.5]} 38... c2 {[%clk
0:00:37.5]} 39. Ne3 {[%clk 0:00:22.3]} 39... h4 {[%clk 0:00:35.8]} 40. gxh4+
{[%clk 0:00:22.3]} 40... Kxh4 {[%clk 0:00:35.9]} 41. Rxc2 {[%clk 0:00:23.1]}
41... Ra8 {[%clk 0:00:27.6]} 42. Nc4 {[%clk 0:00:18.3]} 42... Kg4 {[%clk
0:00:26.4]} 43. Ke3 {[%clk 0:00:18]} 43... Kf5 {[%clk 0:00:24.7]} 44. Nd6+
{[%clk 0:00:18.5]} 44... Ke5 {[%clk 0:00:23.6]} 45. Nxe4 {[%clk 0:00:19.2]}
45... Ra3+ {[%clk 0:00:22.5]} 46. Rc3 {[%clk 0:00:20]} 46... Ra1 {[%clk
0:00:20.5]} 47. Rc5# {[%clk 0:00:20]} 1-0

[Event "Early-Titled-Tuesday-Blitz-April-02-2024"]
[Site "Chess.com"]
[Date "2024.04.02"]
[Round "1"]
[White "Binary010"]
[Black "banane_verte"]
[Result "1-0"]
[WhiteElo "2809"]
[BlackElo "2482"]
[TimeControl "180+1"]
[EndTime "8:07:12 PDT"]
[Termination "Binary010 won by checkmate"]

1. e4 {[%clk 0:03:00.9]} 1... d5 {[%clk 0:02:55.7]} 2. exd5 {[%clk 0:03:00.6]}
2... Qxd5 {[%clk 0:02:56.6]} 3. Nc3 {[%clk 0:03:01]} 3... Qa5 {[%clk 0:02:57.3]}
4. d4 {[%clk 0:03:01.3]} 4... Nf6 {[%clk 0:02:57]} 5. Nf3 {[%clk 0:03:01.6]}
5... c6 {[%clk 0:02:55.7]} 6. Bc4 {[%clk 0:02:58.2]} 6... Bf5 {[%clk 0:02:43.2]}
7. Bd2 {[%clk 0:02:56.3]} 7... Qc7 {[%clk 0:02:29.5]} 8. Qe2 {[%clk 0:02:50.4]}
8... e6 {[%clk 0:02:25.6]} 9. O-O-O {[%clk 0:02:27.9]} 9... Bb4 {[%clk
0:02:24.8]} 10. Kb1 {[%clk 0:02:09.5]} 10... Bxc3 {[%clk 0:02:11.9]} 11. Bxc3
{[%clk 0:02:09.4]} 11... Nbd7 {[%clk 0:02:11.1]} 12. Nh4 {[%clk 0:02:01.2]}
12... Be4 {[%clk 0:01:48.6]} 13. f3 {[%clk 0:01:58]} 13... Bd5 {[%clk 0:01:49]}
14. Bd3 {[%clk 0:01:53.6]} 14... O-O-O {[%clk 0:01:42.8]} 15. Bd2 {[%clk
0:01:47.6]} 15... c5 {[%clk 0:01:26.9]} 16. c4 {[%clk 0:01:46.5]} 16... Bc6
{[%clk 0:01:27.4]} 17. dxc5 {[%clk 0:01:44.3]} 17... Nxc5 {[%clk 0:01:24.8]} 18.
Bc2 {[%clk 0:01:44.3]} 18... Rd4 {[%clk 0:00:30.3]} 19. g3 {[%clk 0:01:27.8]}
19... Rhd8 {[%clk 0:00:30.2]} 20. Bc3 {[%clk 0:01:23.4]} 20... Rxd1+ {[%clk
0:00:28.6]} 21. Rxd1 {[%clk 0:01:24.3]} 21... Rxd1+ {[%clk 0:00:29.1]} 22. Qxd1
{[%clk 0:01:25]} 22... h6 {[%clk 0:00:18.3]} 23. b4 {[%clk 0:01:09.1]} 23...
Ncd7 {[%clk 0:00:15.7]} 24. Qd4 {[%clk 0:00:54]} 24... g5 {[%clk 0:00:08.3]} 25.
Ng2 {[%clk 0:00:47.7]} 25... Bxf3 {[%clk 0:00:07.9]} 26. Ne1 {[%clk 0:00:48.4]}
26... Bc6 {[%clk 0:00:06.4]} 27. Qxa7 {[%clk 0:00:46.8]} 27... Qb6 {[%clk
0:00:05.8]} 28. Qa8+ {[%clk 0:00:39.5]} 28... Kc7 {[%clk 0:00:06.2]} 29. b5
{[%clk 0:00:36]} 29... Bh1 {[%clk 0:00:05.6]} 30. Ba5 {[%clk 0:00:35.8]} 30...
Qxa5 {[%clk 0:00:01.6]} 31. Qxa5+ {[%clk 0:00:35.6]} 31... Nb6 {[%clk
0:00:02.1]} 32. c5 {[%clk 0:00:34.7]} 32... Nd5 {[%clk 0:00:02.7]} 33. cxb6+
{[%clk 0:00:34.7]} 33... Nxb6 {[%clk 0:00:03.6]} 34. Qc3+ {[%clk 0:00:33.3]}
34... Kb8 {[%clk 0:00:03.5]} 35. Qe5+ {[%clk 0:00:32.8]} 35... Ka7 {[%clk
0:00:03.5]} 36. Qc5 {[%clk 0:00:30.7]} 36... f5 {[%clk 0:00:01.8]} 37. a4 {[%clk
0:00:30.3]} 37... Be4 {[%clk 0:00:01.7]} 38. a5 {[%clk 0:00:30]} 38... Bxc2+
{[%clk 0:00:02.6]} 39. Nxc2 {[%clk 0:00:29.2]} 39... e5 {[%clk 0:00:03.5]} 40.
axb6+ {[%clk 0:00:28.4]} 40... Kb8 {[%clk 0:00:04.4]} 41. Qf8# {[%clk
0:00:28.6]} 1-0

[Event "Early-Titled-Tuesday-Blitz-April-02-2024"]
[Site "Chess.com"]
[Date "2024.04.02"]
[Round "1"]
[White "rionelG"]
[Black "Antosha_Chekhonte"]
[Result "0-1"]
[WhiteElo "2199"]
[BlackElo "2590"]
[TimeControl "180+1"]
[EndTime "8:07:12 PDT"]
[Termination "Antosha_Chekhonte won by resignation"]

1. e4 {[%clk 0:02:59.8]} 1... c6 {[%clk 0:02:59.8]} 2. d4 {[%clk 0:02:59.5]}
2... d5 {[%clk 0:03:00.4]} 3. Nd2 {[%clk 0:02:59.2]} 3... dxe4 {[%clk
0:03:00.2]} 4. Nxe4 {[%clk 0:03:00.1]} 4... Nf6 {[%clk 0:03:00.6]} 5. Nxf6+
{[%clk 0:02:59.7]} 5... exf6 {[%clk 0:03:00.6]} 6. c3 {[%clk 0:02:57.2]} 6...
Bd6 {[%clk 0:03:00.7]} 7. Bd3 {[%clk 0:02:57.1]} 7... O-O {[%clk 0:02:58.1]} 8.
Qh5 {[%clk 0:02:55.7]} 8... Re8+ {[%clk 0:02:57.4]} 9. Ne2 {[%clk 0:02:55.1]}
9... f5 {[%clk 0:02:51.2]} 10. Bg5 {[%clk 0:02:47.7]} 10... Qb6 {[%clk
0:02:48.4]} 11. O-O-O {[%clk 0:02:44.2]} 11... Nd7 {[%clk 0:02:30.7]} 12. Rhe1
{[%clk 0:02:34.5]} 12... Nf8 {[%clk 0:02:29.2]} 13. Bf4 {[%clk 0:02:27.4]} 13...
Rxe2 {[%clk 0:02:19]} 14. Rxe2 {[%clk 0:02:12.8]} 14... Bxf4+ {[%clk 0:02:18.7]}
15. Kb1 {[%clk 0:02:13.2]} 15... Be6 {[%clk 0:02:15.6]} 16. Qf3 {[%clk
0:02:04.3]} 16... Ng6 {[%clk 0:01:47.8]} 17. g3 {[%clk 0:01:48.7]} 17... Bd6
{[%clk 0:01:22.9]} 18. Bxf5 {[%clk 0:01:41.5]} 18... Bd5 {[%clk 0:01:22.6]} 19.
Be4 {[%clk 0:01:37.3]} 19... Qa5 {[%clk 0:01:22.7]} 20. Bxd5 {[%clk 0:01:36.7]}
20... Qxd5 {[%clk 0:01:22.8]} 21. Qd3 {[%clk 0:01:25.7]} 21... b5 {[%clk
0:01:21.5]} 22. Rde1 {[%clk 0:01:23.2]} 22... Kf8 {[%clk 0:01:18.6]} 23. h4
{[%clk 0:01:19.9]} 23... a5 {[%clk 0:01:17.2]} 24. Qe4 {[%clk 0:00:45.3]} 24...
Qxe4+ {[%clk 0:01:04.8]} 25. Rxe4 {[%clk 0:00:46.2]} 25... h5 {[%clk 0:00:58.2]}
26. Kc2 {[%clk 0:00:35.9]} 26... a4 {[%clk 0:00:57.6]} 27. R1e2 {[%clk
0:00:32.7]} 27... Ne7 {[%clk 0:00:57.6]} 28. Re1 {[%clk 0:00:23.8]} 28... Nd5
{[%clk 0:00:57.4]} 29. R1e2 {[%clk 0:00:18.7]} 29... g6 {[%clk 0:00:57.7]} 30.
Re1 {[%clk 0:00:18.6]} 30... Kg7 {[%clk 0:00:41.3]} 31. Re8 {[%clk 0:00:16.8]}
31... Rxe8 {[%clk 0:00:38.2]} 32. Rxe8 {[%clk 0:00:17.7]} 32... Kf6 {[%clk
0:00:37.3]} 33. Rc8 {[%clk 0:00:15.9]} 33... Ne7 {[%clk 0:00:37.4]} 34. Rd8
{[%clk 0:00:10.1]} 34... Ke6 {[%clk 0:00:37.3]} 35. Kd3 {[%clk 0:00:08.3]} 35...
Nd5 {[%clk 0:00:36]} 36. Rh8 {[%clk 0:00:06.3]} 36... Nf6 {[%clk 0:00:34.7]} 37.
Rc8 {[%clk 0:00:05.7]} 37... Kd7 {[%clk 0:00:34.2]} 38. Ra8 {[%clk 0:00:05.4]}
38... Ng4 {[%clk 0:00:34.6]} 39. Rf8 {[%clk 0:00:02.5]} 39... Bxf8 {[%clk
0:00:34]} 0-1

[Event "Early-Titled-Tuesday-Blitz-April-02-2024"]
[Site "Chess.com"]
[Date "2024.04.02"]
[Round "1"]
[White "MAGMAchess02"]
[Black "slorovel"]
[Result "0-1"]
[WhiteElo "2305"]
[BlackElo "2629"]
[TimeControl "180+1"]
[EndTime "8:07:16 PDT"]
[Termination "slorovel won by resignation"]

1. e4 {[%clk 0:02:57.1]} 1... g6 {[%clk 0:02:57.8]} 2. d4 {[%clk 0:02:57]} 2...
Bg7 {[%clk 0:02:57.6]} 3. Nf3 {[%clk 0:02:57.6]} 3... c6 {[%clk 0:02:57.9]} 4.
Nc3 {[%clk 0:02:56]} 4... d5 {[%clk 0:02:58]} 5. h3 {[%clk 0:02:56.6]} 5... dxe4
{[%clk 0:02:57.2]} 6. Nxe4 {[%clk 0:02:57.5]} 6... Nf6 {[%clk 0:02:57.3]} 7.
Nxf6+ {[%clk 0:02:57.8]} 7... exf6 {[%clk 0:02:58.2]} 8. c3 {[%clk 0:02:57.3]}
8... O-O {[%clk 0:02:58.1]} 9. Be2 {[%clk 0:02:54.6]} 9... a5 {[%clk 0:02:58]}
10. O-O {[%clk 0:02:55]} 10... a4 {[%clk 0:02:58.3]} 11. Be3 {[%clk 0:02:49.5]}
11... Nd7 {[%clk 0:02:55.6]} 12. Qd2 {[%clk 0:02:47.7]} 12... f5 {[%clk
0:02:46.8]} 13. Bh6 {[%clk 0:02:38.6]} 13... Nf6 {[%clk 0:02:44.5]} 14. Bxg7
{[%clk 0:02:31.3]} 14... Kxg7 {[%clk 0:02:45.4]} 15. Ne5 {[%clk 0:02:32]} 15...
Be6 {[%clk 0:02:43.7]} 16. Bf3 {[%clk 0:02:31.4]} 16... Bd5 {[%clk 0:02:37.9]}
17. Bxd5 {[%clk 0:02:28.2]} 17... Qxd5 {[%clk 0:02:38.3]} 18. Rfe1 {[%clk
0:02:26.1]} 18... Rfd8 {[%clk 0:02:35.3]} 19. Qe3 {[%clk 0:02:23.9]} 19... Ne4
{[%clk 0:02:28.1]} 20. Nd3 {[%clk 0:02:10.7]} 20... Re8 {[%clk 0:02:18.3]} 21.
Qf3 {[%clk 0:02:06.5]} 21... a3 {[%clk 0:02:11]} 22. Nb4 {[%clk 0:02:02.9]}
22... Qc4 {[%clk 0:01:59]} 23. bxa3 {[%clk 0:01:36.2]} 23... Nxc3 {[%clk
0:01:41.6]} 24. Rxe8 {[%clk 0:01:11.2]} 24... Rxe8 {[%clk 0:01:42.5]} 25. Qd3
{[%clk 0:01:11.8]} 25... Ne2+ {[%clk 0:01:35]} 26. Kf1 {[%clk 0:00:53.2]} 26...
Qxd4 {[%clk 0:01:23.3]} 27. Qxd4+ {[%clk 0:00:52.4]} 27... Nxd4 {[%clk
0:01:23.3]} 28. Rd1 {[%clk 0:00:44.3]} 28... c5 {[%clk 0:01:22.6]} 29. Nd3
{[%clk 0:00:44.8]} 29... b6 {[%clk 0:01:22.7]} 30. Rb1 {[%clk 0:00:44.9]} 30...
c4 {[%clk 0:01:10.7]} 31. Nb4 {[%clk 0:00:38]} 31... b5 {[%clk 0:01:10.4]} 32.
Nd5 {[%clk 0:00:37.1]} 32... Ra8 {[%clk 0:01:05.9]} 33. Rd1 {[%clk 0:00:11.6]}
33... Ne6 {[%clk 0:01:01.4]} 34. Nc3 {[%clk 0:00:06.8]} 34... Rxa3 {[%clk
0:00:55.1]} 35. Nxb5 {[%clk 0:00:07.5]} 35... Rxa2 {[%clk 0:00:55.2]} 36. Nd6
{[%clk 0:00:08.2]} 36... c3 {[%clk 0:00:53.8]} 37. Rc1 {[%clk 0:00:08]} 37...
Nd4 {[%clk 0:00:44]} 38. Nc4 {[%clk 0:00:07]} 38... Ne2 {[%clk 0:00:35.5]} 39.
Re1 {[%clk 0:00:03.5]} 39... c2 {[%clk 0:00:32.6]} 40. Ne3 {[%clk 0:00:03.9]}
40... c1=Q {[%clk 0:00:32.1]} 0-1

[Event "Early-Titled-Tuesday-Blitz-April-02-2024"]
[Site "Chess.com"]
[Date "2024.04.02"]
[Round "1"]
[White "Zhigalko_Sergei"]
[Black "killer_dreams"]
[Result "1-0"]
[WhiteElo "2872"]
[BlackElo "2503"]
[TimeControl "180+1"]
[EndTime "8:07:17 PDT"]
[Termination "Zhigalko_Sergei won on time"]

1. e4 {[%clk 0:03:00.9]} 1... c5 {[%clk 0:02:58.5]} 2. Nf3 {[%clk 0:03:00.8]}
2... d6 {[%clk 0:02:58.8]} 3. d4 {[%clk 0:03:01.3]} 3... cxd4 {[%clk 0:02:59]}
4. Qxd4 {[%clk 0:03:02.2]} 4... Nc6 {[%clk 0:02:56]} 5. Bb5 {[%clk 0:03:00.7]}
5... Bd7 {[%clk 0:02:56.5]} 6. Bxc6 {[%clk 0:03:00.8]} 6... Bxc6 {[%clk
0:02:57]} 7. Nc3 {[%clk 0:03:00.9]} 7... h6 {[%clk 0:02:57.7]} 8. Qd3 {[%clk
0:03:00.7]} 8... e5 {[%clk 0:02:57.5]} 9. Nd2 {[%clk 0:03:01]} 9... Qd7 {[%clk
0:02:48.8]} 10. Nc4 {[%clk 0:02:59.1]} 10... b5 {[%clk 0:02:49.4]} 11. Ne3
{[%clk 0:02:59.1]} 11... Nf6 {[%clk 0:02:46.1]} 12. O-O {[%clk 0:02:57.2]} 12...
Be7 {[%clk 0:02:46]} 13. Nf5 {[%clk 0:02:50.8]} 13... g6 {[%clk 0:02:27.2]} 14.
Nxe7 {[%clk 0:02:43.4]} 14... Kxe7 {[%clk 0:02:28.1]} 15. f4 {[%clk 0:02:09.8]}
15... b4 {[%clk 0:02:19.1]} 16. fxe5 {[%clk 0:02:09.1]} 16... dxe5 {[%clk
0:02:17]} 17. Qf3 {[%clk 0:02:00.9]} 17... Qe6 {[%clk 0:01:59.2]} 18. Be3 {[%clk
0:01:28.8]} 18... bxc3 {[%clk 0:01:56.5]} 19. Bc5+ {[%clk 0:01:28.8]} 19... Ke8
{[%clk 0:01:57.2]} 20. Qxf6 {[%clk 0:01:22]} 20... Qxf6 {[%clk 0:01:48.2]} 21.
Rxf6 {[%clk 0:01:22.9]} 21... cxb2 {[%clk 0:01:25.8]} 22. Rb1 {[%clk 0:01:22.6]}
22... Bxe4 {[%clk 0:01:18.9]} 23. Rxb2 {[%clk 0:01:22.1]} 23... Rc8 {[%clk
0:01:02.9]} 24. Bd6 {[%clk 0:00:30.6]} 24... Kd7 {[%clk 0:00:25.5]} 25. Bxe5
{[%clk 0:00:29.2]} 25... Rhe8 {[%clk 0:00:25.4]} 26. Bd4 {[%clk 0:00:29.3]}
26... Bd5 {[%clk 0:00:17.5]} 27. c3 {[%clk 0:00:21]} 27... Re1+ {[%clk
0:00:13.8]} 28. Kf2 {[%clk 0:00:20.8]} 28... Ra1 {[%clk 0:00:14.5]} 29. Ra6
{[%clk 0:00:11.2]} 29... Rc7 {[%clk 0:00:11.6]} 30. Be5 {[%clk 0:00:10.5]} 30...
Rb7 {[%clk 0:00:08.5]} 31. Rd2 {[%clk 0:00:11]} 31... Rb5 {[%clk 0:00:02.8]} 32.
c4 {[%clk 0:00:11.3]} 32... Rc5 {[%clk 0:00:02.4]} 33. Bxa1 {[%clk 0:00:11]} 1-0

[Event "Early-Titled-Tuesday-Blitz-April-02-2024"]
[Site "Chess.com"]
[Date "2024.04.02"]
[Round "1"]
[White "JoshWeinstein"]
[Black "ansko1999"]
[Result "1-0"]
[WhiteElo "2380"]
[BlackElo "2648"]
[TimeControl "180+1"]
[EndTime "8:07:19 PDT"]
[Termination "JoshWeinstein won on time"]

1. e4 {[%clk 0:03:00.2]} 1... d6 {[%clk 0:02:59.8]} 2. Nc3 {[%clk 0:03:00.5]}
2... Nf6 {[%clk 0:02:57.5]} 3. Bc4 {[%clk 0:03:00.7]} 3... c6 {[%clk 0:02:46.8]}
4. d3 {[%clk 0:02:52.9]} 4... d5 {[%clk 0:02:44.2]} 5. Bb3 {[%clk 0:02:52.2]}
5... dxe4 {[%clk 0:02:32.2]} 6. Nxe4 {[%clk 0:02:46.5]} 6... Nxe4 {[%clk
0:02:31.2]} 7. dxe4 {[%clk 0:02:46.2]} 7... Qxd1+ {[%clk 0:02:32.1]} 8. Kxd1
{[%clk 0:02:46]} 8... Nd7 {[%clk 0:02:29.5]} 9. Nf3 {[%clk 0:02:45.6]} 9... Nc5
{[%clk 0:02:28.8]} 10. Re1 {[%clk 0:02:32.8]} 10... Bg4 {[%clk 0:02:15.1]} 11.
h3 {[%clk 0:02:10.4]} 11... Bxf3+ {[%clk 0:02:07.6]} 12. gxf3 {[%clk 0:02:09.7]}
12... Nxb3 {[%clk 0:01:59.7]} 13. axb3 {[%clk 0:02:09.1]} 13... a6 {[%clk
0:01:58.2]} 14. Ke2 {[%clk 0:02:06.3]} 14... O-O-O {[%clk 0:01:46.2]} 15. Be3
{[%clk 0:01:57.4]} 15... g6 {[%clk 0:01:41]} 16. Rad1 {[%clk 0:01:55.8]} 16...
Bg7 {[%clk 0:01:39.4]} 17. c3 {[%clk 0:01:55.9]} 17... Be5 {[%clk 0:01:38.4]}
18. f4 {[%clk 0:01:50.3]} 18... Bc7 {[%clk 0:01:38.5]} 19. Kf3 {[%clk
0:01:47.8]} 19... e6 {[%clk 0:01:38.2]} 20. Bc5 {[%clk 0:01:43.9]} 20... Rhe8
{[%clk 0:01:34.4]} 21. e5 {[%clk 0:01:30.4]} 21... b6 {[%clk 0:01:26.6]} 22. Be3
{[%clk 0:01:27.2]} 22... a5 {[%clk 0:01:24.3]} 23. Kg4 {[%clk 0:01:26.5]} 23...
h6 {[%clk 0:01:20.8]} 24. h4 {[%clk 0:01:22.3]} 24... h5+ {[%clk 0:01:02.7]} 25.
Kg5 {[%clk 0:01:20.3]} 25... Rxd1 {[%clk 0:01:02.7]} 26. Rxd1 {[%clk 0:01:20.1]}
26... Bd8+ {[%clk 0:01:03.5]} 27. Rxd8+ {[%clk 0:01:10.8]} 27... Rxd8 {[%clk
0:01:01.6]} 28. Kf6 {[%clk 0:01:05.6]} 28... Rd7 {[%clk 0:00:49]} 29. Bxb6
{[%clk 0:01:05.3]} 29... Rb7 {[%clk 0:00:41.4]} 30. Bxa5 {[%clk 0:01:01.1]}
30... Rxb3 {[%clk 0:00:33.4]} 31. Kxf7 {[%clk 0:00:58.9]} 31... Kd7 {[%clk
0:00:33.6]} 32. Kxg6 {[%clk 0:00:53.6]} 32... Rxb2 {[%clk 0:00:34]} 33. Kxh5
{[%clk 0:00:52.2]} 33... Rxf2 {[%clk 0:00:33.9]} 34. Kg5 {[%clk 0:00:50.4]}
34... Rg2+ {[%clk 0:00:32.9]} 35. Kh5 {[%clk 0:00:46.8]} 35... c5 {[%clk
0:00:27.2]} 36. Bb6 {[%clk 0:00:37.6]} 36... Kc6 {[%clk 0:00:23.6]} 37. Bd8
{[%clk 0:00:37.7]} 37... Kd5 {[%clk 0:00:21.7]} 38. Bg5 {[%clk 0:00:38.2]} 38...
Kc4 {[%clk 0:00:12]} 39. Kg6 {[%clk 0:00:38.8]} 39... Kxc3 {[%clk 0:00:12.3]}
40. Kf6 {[%clk 0:00:39.5]} 40... Kd4 {[%clk 0:00:09.7]} 41. Kxe6 {[%clk
0:00:40]} 41... c4 {[%clk 0:00:10.1]} 42. Kf7 {[%clk 0:00:40]} 42... c3 {[%clk
0:00:09.6]} 43. e6 {[%clk 0:00:40.8]} 43... c2 {[%clk 0:00:08.7]} 44. e7 {[%clk
0:00:41.2]} 44... Re2 {[%clk 0:00:03.8]} 45. f5 {[%clk 0:00:41.5]} 45... Kd5
{[%clk 0:00:02.1]} 46. f6 {[%clk 0:00:33]} 46... Kd6 {[%clk 0:00:02.1]} 47. e8=Q
{[%clk 0:00:32.8]} 1-0